Cogmind - Beta 16 @@@ ROGUE MODE // 2025.10.28 @ 10:49:04 Player: Err. String Expected Got Nil Result: Self-destructed Performance ------------- Evolutions (1) 500 Regions Visited (3) 600 Robots Destroyed (19) 95 Value Destroyed (428) 428 Prototype IDs (0) 0 Alien Tech Used (0) 0 Bonus (0) 0 TOTAL SCORE: 1623 Bonus ------- None Cogmind --------- Core Integrity 284/400 Matter 300/300 Energy 99/100 System Corruption 0% Temperature Cool (0) Movement Core (50) Location -9/Materials Parts ------- > --- POWER (1) -------- (None) > --- PROPULSION (4) --- Light Treads Light Treads > --- UTILITY (2) ------ Signal Interpreter Improved Terrain Scan Processor > --- WEAPON (2) ------- Beam Rifle > --- INVENTORY (5) ---- Improved Ion Engine Sensor Array Light Assault Rifle Mini Grenade Launcher Maul Peak State ------------ > --- POWER ------------ Improved Ion Engine > --- PROPULSION ------- Light Treads Light Treads Light Treads > --- UTILITY ---------- Signal Interpreter Improved Terrain Scan Processor > --- WEAPON ----------- Beam Rifle Assault Rifle > --- INVENTORY -------- Sensor Array Light Assault Rifle Mini Grenade Launcher Maul [Rating: 12] Favorites ----------- Power Improved Ion Engine Engine Improved Ion Engine Propulsion Light Treads Treads Light Treads Leg Aluminum Leg Flight Unit Flight Unit Utility Signal Interpreter Processor Signal Interpreter Weapon Light Assault Rifle Energy Gun Beam Rifle Ballistic Gun Light Assault Rifle Launcher Mini Grenade Launcher Impact Weapon Maul Build | -11 -10 -10 -9 ------- Run | Yrd Mat Min Mat Slots Evolved 2 | . . . 2 Power . | . . . . Propulsion 2 | . . . 2 Utility . | . . . . Weapon . | . . . . Parts Attached 15 | 4 2 . 9 Power 1 | . . . 1 Engine 1 | . . . 1 Core . | . . . . Reactor . | . . . . Propulsion 6 | 2 1 . 3 Treads 4 | 2 . . 2 Leg 1 | . 1 . . Wheel . | . . . . Hover . | . . . . Flight 1 | . . . 1 Utility 2 | . . . 2 Device . | . . . . Storage . | . . . . Processor 2 | . . . 2 Hackware . | . . . . Protection . | . . . . Artifact . | . . . . Weapon 6 | 2 1 . 3 Energy Gun 1 | . . . 1 Energy Cannon . | . . . . Ballistic Gun 3 | 2 . . 1 Ballistic Cannon . | . . . . Launcher 1 | . . . 1 Special Weapon . | . . . . Impact Weapon 1 | . 1 . . Slashing Weapon . | . . . . Piercing Weapon . | . . . . Special Melee Weapon . | . . . . Unidentified Prototypes . | . . . . Parts Lost 4 | . . . 4 Power . | . . . . Propulsion 3 | . . . 3 Utility . | . . . . Weapon 1 | . . . 1 Highest Loss Streak 2 | . . . 2 To Critical Strikes . | . . . . Average Backups 4 | 1 4 5 4 Power 1 | 1 1 1 . Propulsion . | . . . . Utility . | . . . . Weapon 3 | . 3 4 3 Tool/Special . | . . . . Unused Backups 6 | . 2 . 4 Power 2 | . 1 . 1 Propulsion . | . . . . Utility 2 | . . . 2 Weapon 2 | . 1 . 1 Tool/Special . | . . . . Average Slot Usage (%) 69 | . 57 57 78 Treads 21 | . 24 14 22 Leg 7 | . 4 14 7 Flight 3 | . . . 6 Processor 11 | . . . 19 Ballistic Gun 23 | . 27 28 20 Peak Build Rating 12 | 4 5 4 12 Average Rating 6 | 2 4 4 9 On Entrance 3 | . 4 4 4 Avg Prop Armor Cover (%) 27 | 29 25 24 29 Naked Turns . | . . . . Heaviest Build 5 | 3 5 3 4 Greatest Support 3 | 3 3 3 3 Greatest Overweight (x) 1 | . 1 . 1 Average Overweight (x) . | . . . . Largest Inventory Capacity 5 | 5 5 5 5 Average Capacity 5 | 5 5 5 5 Most Carried 5 | 4 5 5 5 Average Carried 4 | 1 4 5 4 Final Capacity 5 | 5 5 5 5 Final Carried 5 | 3 5 5 5 Class Distribution -------------------- 100% | Mutant Dominant Class ---------------- Mutant | -10/Materials Mutant | -10/Mines Mutant | -9/Materials Resources | -11 -10 -10 -9 ----------- Run | Yrd Mat Min Mat Matter Collected 667 | 240 74 16 337 Remotely . | . . . . Salvage Created 605 | . 102 . 503 Parts 34 | . 2 . 32 Haulers Intercepted 2 | . . . 2 Recyclers Shooed 1 | . . . 1 Parts Field Recycled . | . . . . Retrieved Matter . | . . . . Parts Self-Destructed . | . . . . Prevented . | . . . . Parts Restored . | . . . . Kills | -11 -10 -10 -9 ------- Run | Yrd Mat Min Mat Combat Hostiles Destroyed 11 | . 1 . 10 Guns 8 | . 1 . 7 AOE 3 | . . . 3 Classes Destroyed 7 | . 2 . 5 Worker 2 | . . . 2 Builder 1 | . . . 1 Hauler 2 | . . . 2 Watcher 3 | . 2 . 1 Swarmer 3 | . . . 3 Grunt 4 | . 1 . 3 Sentry 4 | . . . 4 Best Kill Streak 4 | . 2 . 4 Combat Bots Only 3 | . 1 . 3 Max Kills in Single Turn 4 | . 1 . 4 Gunslinging . | . . . . Exploded 3 | . . . 3 Melee . | . . . . Uniques/NPCs Destroyed . | . . . . Combat | -11 -10 -10 -9 -------- Run | Yrd Mat Min Mat Hostile Shots Fired 77 | . 15 . 62 Missed 18 | . 5 . 13 Hits 59 | . 10 . 49 Projectile 59 | . 10 . 49 Critical Strikes 2 | . 1 . 1 Damage Taken 917 | . 260 . 657 Core 148 | . 32 . 116 Absorbed by Shields . | . . . . Core Remaining (%) 93 | 100 . 87 . Volleys Fired 70 | . 15 . 55 Largest 2 | . 2 . 2 Hottest 76 | . 40 . 76 Shots Fired 138 | . 30 . 108 Gun 137 | . 30 . 107 Cannon . | . . . . Launcher 1 | . . . 1 Special . | . . . . Kinetic 131 | . 30 . 101 Thermal 6 | . . . 6 Explosive 1 | . . . 1 Electromagnetic . | . . . . Robot Hit Streak 11 | . 5 . 11 Robot Miss Streak 5 | . 2 . 5 Penetration Max . | . . . . Secondary Targets . | . . . . Shots Hit Robots 93 | . 21 . 72 Core Hits 36 | . 8 . 28 Critical Kills . | . . . . Critical Parts Destroyed . | . . . . Critical Strikes . | . . . . Melee Attacks 4 | . 1 . 3 Impact 4 | . 1 . 3 Slashing . | . . . . Piercing . | . . . . Sneak Attacks . | . . . . Combat Hostiles . | . . . . Follow-up Attacks . | . . . . Damage Inflicted 1226 | . 213 . 1013 Guns 1007 | . 213 . 794 Cannons . | . . . . Explosions 219 | . . . 219 Melee . | . . . . Ramming . | . . . . Kinetic 916 | . 213 . 703 Thermal 91 | . . . 91 Explosive 219 | . . . 219 Electromagnetic . | . . . . Impact . | . . . . Slashing . | . . . . Piercing . | . . . . Highest Corruption . | . . . . Average Corruption . | . . . . Corruption Purged . | . . . . Corruption Blocked . | . . . . Overload Shots . | . . . . Overflow Damage . | . . . . Projectiles . | . . . . Explosions . | . . . . Melee . | . . . . Knockbacks . | . . . . Impact . | . . . . Kinetic . | . . . . Secondary . | . . . . Self-Inflicted Damage 25 | . . . 25 Shots 1 | . . . 1 Rammed . | . . . . Targets Rammed . | . . . . Kicked . | . . . . Crushed . | . . . . Highest Temperature 120 | . 22 . 120 Average Temperature 44 | . 8 . 49 Received Heat Transfer 282 | . 69 . 213 Siege Activations . | . . . . Martial Activations . | . . . . Shielding Activations . | . . . . Robots Disrupted . | . . . . Combat Hostiles . | . . . . Robots Corrupted . | . . . . Combat Hostiles . | . . . . Parts Fried . | . . . . Impact Corruptions . | . . . . Robots Melted . | . . . . Combat Hostiles . | . . . . Parts Melted . | . . . . Heat Transferred 222 | . . . 222 Parts Sabotaged . | . . . . Parts Stolen . | . . . . Parts Stripped . | . . . . Power Chain Reactions . | . . . . Alert | -11 -10 -10 -9 ------- Run | Yrd Mat Min Mat Maximum Alert Level . | . . . . Low Security (%) 100 | 100 100 100 100 Level 1 . | . . . . Level 2 . | . . . . Level 3 . | . . . . Level 4 . | . . . . Level 5 . | . . . . High Security . | . . . . Max Security . | . . . . Peak Influence 135 | . 30 1 135 Initial 1 | . . 1 . Average 51 | . 6 . 90 Influence Increases 477 | . 60 . 417 Destroy 0b10 Robot/C 220 | . 20 . 200 Destroy 0b10 Robot/NC 40 | . 10 . 30 Destroy Leader 80 | . 14 . 66 Successful Hack 18 | . . . 18 Disable Machine 15 | . . . 15 Destroy Structure 14 | . 1 . 13 Partial Spotted 30 | . 15 . 15 Lose Combat Pursuer 60 | . . . 60 Influence Decreases 423 | . 55 5 363 Entered New Map 4 | . . 4 . Time Decay 275 | . 55 1 219 Lost Part 40 | . . . 40 Purge Threat 104 | . . . 104 Squads Dispatched 3 | . . . 3 Investigation . | . . . . Extermination . | . . . . Reinforcement 3 | . . . 3 Assault . | . . . . Garrison . | . . . . Intercept . | . . . . Searches Triggered . | . . . . Construction Impeded . | . . . . Haulers Reinforced . | . . . . Active Scanning Responses . | . . . . Cargo Convoy Interrupts . | . . . . Stealth | -11 -10 -10 -9 --------- Run | Yrd Mat Min Mat Distress Signals 4 | . 1 . 3 Communications Jammed . | . . . . Distress Signals . | . . . . Times Spotted 37 | . 8 . 29 Peak Tracking Total 8 | . 4 . 8 Tactical Retreats 2 | . . . 2 Traps | -11 -10 -10 -9 ------- Run | Yrd Mat Min Mat Traps Triggered 1 | . 1 . . Indirectly . | . . . . Trap Hack Attempts . | . . . . Triggered . | . . . . Disarmed . | . . . . Reprogrammed . | . . . . Reused . | . . . . Traps Extracted . | . . . . Installed . | . . . . Triggered . | . . . . Machines | -11 -10 -10 -9 ---------- Run | Yrd Mat Min Mat Machines Disabled 1 | . . . 1 Max in Single Turn 1 | . . . 1 Machines Repaired . | . . . . Machines Dismantled . | . . . . Machines Sabotaged . | . . . . Overloaded Fab Kills . | . . . . Hacking | -11 -10 -10 -9 --------- Run | Yrd Mat Min Mat Machines Accessed 6 | . . . 6 Terminals 6 | . . . 6 Fabricators . | . . . . Repair Stations . | . . . . Recycling Units . | . . . . Scanalyzers . | . . . . Garrison Access . | . . . . Total Hacks 15 | . . . 15 Successful 11 | . . . 11 Failed 4 | . . . 4 Catastrophic 1 | . . . 1 Database Lockouts . | . . . . Manual 13 | . . . 13 Terminals 15 | . . . 15 Fabricators . | . . . . Repair Stations . | . . . . Recycling Units . | . . . . Scanalyzers . | . . . . Garrison Access . | . . . . Terminal Hacks 4 | . . . 4 Robot Analysis 1 | . . . 1 Terminal Index 1 | . . . 1 Alert Level 1 | . . . 1 Unreport Threat 1 | . . . 1 Fabricator Hacks . | . . . . Repair Station Hacks . | . . . . Recycling Unit Hacks . | . . . . Scanalyzer . | . . . . Garrison Access Hacks . | . . . . Unauthorized Hacks 7 | . . . 7 Terminals 7 | . . . 7 Botnet 2 | . . . 2 Skim 5 | . . . 5 Fabricators . | . . . . Repair Stations . | . . . . Recycling Units . | . . . . Scanalyzers . | . . . . Garrison Access . | . . . . Data Cores Recovered . | . . . . Used . | . . . . Hacking Detections 5 | . . . 5 Full Trace Events . | . . . . Feedback Events . | . . . . Feedback Blocked . | . . . . Robot Schematics Acquired . | . . . . Robots Built . | . . . . Authchips . | . . . . Time . | . . . . Total Robot Build Rating . | . . . . Part Schematics Acquired . | . . . . Parts Built . | . . . . Authchips . | . . . . Time . | . . . . Total Part Build Rating . | . . . . Part Studies Acquired . | . . . . Parts Repaired . | . . . . Time . | . . . . Parts Recycled . | . . . . Recycled Matter . | . . . . Retrieved Matter . | . . . . Retrieved Components . | . . . . Parts Scanalyzed . | . . . . Part Schematics Acquired . | . . . . Parts Damaged . | . . . . Bothacking | -11 -10 -10 -9 ------------ Run | Yrd Mat Min Mat Used RIF Installer . | . . . . Robots Hacked . | . . . . Non-combat . | . . . . Combat . | . . . . Robot Hacks Applied . | . . . . Relay Couplers Released . | . . . . Fabnet Peak Effective % . | . . . . Robots Rewired . | . . . . Allies Hacked . | . . . . Hacks Repelled . | . . . . Allies | -11 -10 -10 -9 -------- Run | Yrd Mat Min Mat Total Allies . | . . . . Largest Group . | . . . . Highest-Rated Group . | . . . . Highest-Rated Ally . | . . . . Total Orders . | . . . . Ally Attacks . | . . . . Total Damage . | . . . . Kills . | . . . . Allies Corrupted . | . . . . Allies Melted . | . . . . Intel | -11 -10 -10 -9 ------- Run | Yrd Mat Min Mat Active Infowar (turns) . | . . . . Robot Analysis Total 1 | . . . 1 Derelict Logs Recovered 2 | . . 2 . Drone Launches . | . . . . Drone Recoveries . | . . . . Exploration | -11 -10 -10 -9 ------------- Run | Yrd Mat Min Mat Turns Passed 855 | 32 202 150 471 Spaces Moved 1106 | 44 262 293 507 Core 1106 | 44 262 293 507 Treads . | . . . . Legs . | . . . . Wheels . | . . . . Hover . | . . . . Flight . | . . . . Fastest Speed 50 | 50 50 50 50 Average Speed 50 | 50 50 50 50 Slowest Speed 100 | 50 100 50 100 Overloaded Moves . | . . . . Propulsion Burnouts . | . . . . Robots Hopped . | . . . . Potential Cave-ins . | . . . . Cave-ins Triggered . | . . . . Exploration Rate (%) 38 | 3 39 51 62 Regions Visited 3 Branch Regions 1 Pre-discovered Areas 2 | . . 2 . Known Exits Taken . | . . . . Unknown Exits Taken 3 | 1 1 1 . Scrap Searched 1 | . . 1 . Spaces Dug 3 | . 1 . 2 Terrain Destroyed 13 | . 1 . 12 Melee 3 | . 1 . 2 Projectile . | . . . . AOE 10 | . . . 10 Terrain Rammed . | . . . . Walls Destroyed . | . . . . Machines Disabled . | . . . . Actions | -11 -10 -10 -9 --------- Run | Yrd Mat Min Mat Total 1263 | 51 302 295 615 Wait 45 | . 15 3 27 Move 1103 | 43 261 292 507 Hop . | . . . . Pick Up 12 | 4 4 . 4 Fast Attach 9 | 3 1 . 5 Attach 2 | 1 . . 1 Detach 1 | . . . 1 Swap 10 | . 2 . 8 Drop 7 | . 3 . 4 Fire 70 | . 15 . 55 Melee 4 | . 1 . 3 Ram . | . . . . Kick . | . . . . Crush . | . . . . Escape Stasis . | . . . . Rewire . | . . . . Trap . | . . . . Miscellaneous . | . . . . Route ------- -11/Scrapyard -10/Materials (discovered 2 exits: *Mat / [*Min]) -10/Mines -9/Materials (discovered 2 exits: [*Mat x2]) History --------- Turn | Location | Event 8 | -11/Scrapyard | Discovered new exit (range 13) 33 | -11/Scrapyard | Entered Materials 89 | -10/Materials | Discovered new exit (range 4) 220 | -10/Materials | Discovered new exit (range 6) 235 | -10/Materials | Entered Mines 245 | -10/Mines | Learned location of Zion (-7) 318 | -10/Mines | Build established: Mutant 338 | -10/Mines | Discovered new exit (range 6) 385 | -10/Mines | Entered Materials 385 | -9/Materials | Evolved 2 slots: Propulsion x2 556 | -9/Materials | Discovered new exit (range 16) 715 | -9/Materials | Discovered new exit (range 16) 856 | -9/Materials | Self-destructed Last Messages --------------- >>Trojan(Skim) Trojan loaded successfully. Testing... Terminal linked with 4 systems. Skimming routine engaged. Thanks from A0-MCA. >>Alert(Purge) Purged threat record, alert level lowered. 00801_ K-01 Serf destroyed. 00803_ K-01 Serf collects debris. 00804_ Acquired 10 matter. 00836_ Critical hit (Burn: +37). 00841_ ALERT: Hostiles spotted, dispatching reinforcements to Terminal M006. 00842_ K-01 Serf cleans the Fusion Modulator. 00842_ Assault Rifle destroyed. 00844_ Y-45 Defender destroyed. 00845_ K-01 Serf collects debris. 00847_ Lgt. Treads destroyed. 00847_ Acquired 40 matter. 00852_ U-05 Engineer destroyed. Map ----- +----------------------------------------------------+ | ?????????????????????????????? = | | ??????????########???????????? | | ??????????? ???????????? | | ???????????? ?????????? | | ????????????? ???????? | | ?????????????? ???????# | | ??????????????? #??????? ############### | | ???????????????? ########+###???????????# | | ?????????????#### ## #???????????# ###+ | | ?????????????# # ############# # | | ?????????????# [#=""" """ + / | | ?????????????# %/*""" """ ############# #### | | ?????????????# # """ """ #???????????# #??# | | ?????????????# # #???????????#=#??#! | | ?????????????## ## #???????????#=#??# | | ??????????????# ## [ #???????????# #??#! | | ??????????????# ############??????????##+####### | | ??????????????# ###########???????????#**= T #? | | ?????????????## ## #???????????# #? | | ????????###/## # """ #???????????# #? | | ????????# = # """"" #???????????# #? | | ????????+ !%!+ """"" #???????????# # | | ????????# * # """"" #???????????# """ / | | ????????### ## # """ #???????????# """"" # | | ??????????# ?## ## #???????????# """"" # | | ??????????#???# ## @ #???????????# """"" #? | | ??????????????# ## #???????????# """ #? | | ??????????????# ?##########???????????# #? | | ??????????????# ??????????????????????##??#####? | | ??????????????# ???????????????????????????????? | | ??????????????# ???????????????????????????????? | | ??????????????# ???????????????????????????????? | | ??????????????# ???????????????????????????????? | | ??????????????# ???????????????????????????????? | | ??????????????# ????????????????????????????????? | | ??????????????# ????????????????????????????????? | | ?????????????????????????????????????????????????? | | ?????????????????????????????????????????????????? | | ?????????????????????????????????????????????????? | | ?????????????????????????????????????????????????? | | ?????????????????????????????????????????????????? | | ?????????????????????????????????????????????????? | | ?????????????????????????????????????????????????? | | ?????????????????????????????????????????????????? | | ?????????????????????????????????????????????????? | | ?????????????????????????????????????????????????? | | ?????????????????????????????????????????????????? | | ?????????????????????????????????????????????????? | | ?????##########??????????????????????????????????? | | ?????# """ #??????????????????????????????????? | +----------------------------------------------------+ Best States ------------- Heat Dissipation 28 Energy Generation 12 Energy Capacity 265 Matter Stores 300 Matter Capacity 300 Sight Range 16 Terrain Scan Density 110 Evasion (%) 50 Recoil Reduction 3 Item Schematics ----------------- None Robot Schematics ------------------ None Fabricated ------------ Nothing Repaired ---------- Nothing Studied --------- None Alien Tech Used ----------------- None Achievements -------------- Physics Hates This One Trick Challenges ------------ None Game ------ Seed ContainmentTiamatRail Manual? 0 Play Time 00:14:09 Cumulative 149.2 hours Start 2025.10.28 @ 10:33:45 End 2025.10.28 @ 10:49:04 Sessions 3 Manual Loads 0 Difficulty Rogue Special Mode None Game No. 106 Rogue 106 Adventurer 0 Explorer 0 Win Type - Total 4 Types 3/0/1/0/0/0/0/0/0/0 Lore% 55 Gallery% 50 Achievement% 29 Wizard Run 0 Options --------- Layout 2 ASCII 0 Keyboard 1 Movement Numpad Keybinds 0 Fullscreen 2 Font 32/SmallcapsGlow Map View 50x44 Zoom Use 0% Tactical HUD 1 Map Filters NONE Filters NONE Steam 1 RUN: 5c35a70d-94d4-4ada-b9d7-3b63371d8816